Workbook

Sheet ورقة1 (3)
B4: تركة المرحوم (ة)/ | F4: احمد محمد احمد محمد
B10: م | C10: البيــــــــــــــــــــــــــــــــــــــــــــــــــان | G10: المبلغ
C11: اجمالى قيمة التركــــــــــــــــــة | G11: 3000
B12: - | G12: 0 | I12: =G11*0.003 -> 9 | J12: الأب | K12: نصيب/
C13: صافى قيمة التركة بعد العمولة | G13: =G11-G12 -> 3000 | J13: الأم | K13: نصيب/
J14: الزوج
B15: أنصبة التركة / توزيع أصحـــــــــــــــاب الفروض | I15: =G13/3 -> 1000 | J15: الزوجة
C16: نصيب/ | D16: الزوجة | E16: الربع | F16: اااااااااا | G16: =IF(E16="الثمن",$G$13*1/8,IF(E16="الثلث",$G$13*1/3,IF(E16="الربع",$G$13*1/4,IF(E16="النصف",$G$13*1/2,"")))) -> 750 | H16: المطلوب عند اختيار الثلث من خلية E16 يتم احتساب نصيب فى خانةG16 = G13 صافى التركة * الثلث 3/1 | I16: =G13/3 -> 1000 | J16: الجدة لأمه
E17: الثمن | G17: =IF(E17="الثمن",$G$13*1/8,IF(E17="الثلث",$G$13*1/3,IF(E17="الربع",$G$13*1/4,IF(E17="النصف",$G$13*1/2,"")))) -> 375 | I17: =G13/6 -> 500 | J17: الجدة لأبيه
I18: =G13/6 -> 500 | J18: الأخ لأمه
I19: =G13/8 -> 375 | J19: الأخت لأمها
I20: =G13/4 -> 750 | O20: `
G21: =SUM(G16:G20) -> 1125
F22: الرصيد المتبقى | G22: =G13-G21 -> 1875
B24: أنصبة التركة / قسم يرث بالتعصيب | J24: النصف
B25: 2 | G25: 6.19 | J25: الثمن
B26: 3 | G26: 6.2 | J26: الثلث
B27: 4 | G27: 6.2 | J27: الربع
B28: 5 | G28: 3.1
B29: 6 | G29: 3.1
B30: 7 | G30: 3.09 | U30: ا
B31: 8 | G31: 3.1
B32: 9
B33: 10 | G33: =SUM(G24:G31) -> 30.98
K124: بنك القاهرة - فرع الالفى
L125: تصفية تركة السيد / شحاتة موسى شحاتة
K126: حساب رقم 40.501.30431
L128: البيان | M128: المبلغ
L129: اجمالى قيمة التركــــــــــــــــــة_ | M129: 52811.97
L130: ناقص عمولة تصفية التركة 03% | M130: =M129*3/1000 -> 158.43591
L131: الصافى القابل للتوزيع | M131: =M129-M130 -> 52653.53409
L133: تصيب الاب ( السدس) | M133: 0
L134: نصيب الام (السدس)
L135: نصيب الزوجه ( الثمن) تهانى عثمان محمد | M135: =M131/8 -> 6581.691761 | O135: تم الصرف بموجب اذن صرف رقم بتاريخ / /2006
L136: اجمالى الانصبة عاليه | M136: =M133+M134+M135 -> 6581.691761
L137: الرصيد المتبقى | M137: =M131-M136 -> 46071.84233
K139: 1 | L139: االسيد ه/ سهير شحاته موسى | M139: =M140 -> 5119.093592 | O139: تم الصرف بموجب اذن صرف رقم بتاريخ / /2006
K140: 2 | L140: السيده/ وفاء شحاتة موسى | M140: =P147 -> 5119.093592 | O140: تم الصرف بموجب اذن صرف رقم بتاريخ / /2006
K141: 3 | L141: السيده/ صفاء شحاتة موسى | M141: =M140 -> 5119.093592 | O141: تم الصرف بموجب اذن صرف رقم بتاريخ / /2006
K142: 4 | L142: السيد/ سمير شحاتة موسى | M142: =P148 -> 10238.18718 | O142: تم الصرف بموجب اذن صرف رقم بتاريخ / /2006
K143: 5 | L143: السيد/ عزت شحاتة موسى | M143: =M142 -> 10238.18718 | O143: البيان | P143: عدد
K144: 6 | L144: السيد/ عماد شحاتة موسى | M144: =M143 -> 10238.18718 | O144: ذكور | P144: 3
M145: 0 | O145: اناث | P145: 3
M146: 0 | O146: الاجمالى | P146: =P144*2+P145 -> 9
M147: 0 | O147: نصيب الفرد | P147: =M137/P146 -> 5119.093592
M148: =SUM(M139:M147) -> 46071.84233 | O148: نصيب الذكر | P148: =P147*2 -> 10238.18718
O149: نصيب البنت | P149: =P147*1 -> 5119.093592
B155: بنك القاهرة - فرع الالفى
F156: تصفية تركة السيد /
B157: حساب رقم
F159: البيان | G159: المبلغ
F160: اجمالى قيمة التركــــــــــــــــــة_ | G160: 100000
F161: ناقص عمولة تصفية التركة 03% | G161: =G160*0.003 -> 300
F162: الصافى القابل للتوزيع | G162: =G160-G161 -> 99700
F164: تصيب الاب ( السدس) | G164: 0
F165: نصيب الام (السدس) | G165: 0
F166: نصيب الزوجه ( الثمن) | G166: 0
F167: اجمالى الانصبة عاليه | G167: =G164+G165+G166 -> 0
F168: الرصيد المتبقى | G168: =G162-G167 -> 99700
I169: البيان | K169: عدد
B170: 1 | F170: االسيد / | G170: 0 | I170: ذكور | K170: 1
B171: 2 | F171: السيد/ | G171: 0 | I171: اناث | K171: 0
B172: 3 | F172: القاصر | G172: 0 | I172: الاجمالى | K172: =K170*2+K171 -> 2
B173: 4 | F173: السيدة / | G173: 0 | I173: نصيب الفرد | K173: =G168/K172 -> 49850
B174: 5 | G174: 0 | I174: نصيب الذكر | K174: =K173*2 -> 99700
B175: 6 | G175: 0 | I175: نصيب البنت | K175: =K173*1 -> 49850
B176: 7 | G176: 0
B177: 8 | G177: 0
B178: 9 | G178: 0
B179: 10 | G179: 0
G180: =SUM(G170:G179) -> 0
